[Event "51st Rilton Cup 2023-24"]
[Site "Stockholm"]
[Date "2024.01.03"]
[Round "7.14"]
[White "Kokoszczynski, Jan"]
[Black "Socko, Monika"]
[Result "0-1"]
[ECO "E27"]
[WhiteElo "2250"]
[BlackElo "2396"]
[Annotator "RC"]
[PlyCount "88"]
[EventDate "2023.12.27"]
[EventType "swiss"]
[EventCountry "SWE"]
[SourceTitle "playchess.com"]
[Source "ChessBase"]
[SourceQuality "1"]
[TimeControl "40/5400+30:1800+30"]

1. d4 {[%emt 0:03:48]} Nf6 {[%emt 0:00:05]} 2. c4 {[%emt 0:00:06]} e6 {[%emt 0:00:04]} 3. Nc3 {[%emt 0:00:20]} Bb4 {[%emt 0:00:05]} 4. f3 {[%emt 0:00:31]} O-O {[%emt 0:00:34]} 5. a3 {[%emt 0:09:10]} Bxc3+ {[%emt 0:00:14]} 6. bxc3 {[%emt 0:00:01]} Ne8 {[%emt 0:00:07]} 7. e4 {[%emt 0:05:13]} b6 {[%emt 0:00:12]} 8. Bd3 {[%emt 0:01:30]} Nc6 {[%emt 0:00:14]} 9. Ne2 {[%emt 0:11:53]} Ba6 {[%emt 0:04:00]} 10. Ng3 {[%emt 0:01:04]} Na5 {[%emt 0:01:36]} 11. Qe2 {[%emt 0:00:43]} c5 {[%emt 0:07:06]} 12. d5 {[%emt 0:02:43]} Qh4 {[%emt 0:22:26]} 13. O-O {[%emt 0:04:46]} g6 {[%emt 0:02:49]} 14. f4 {[%emt 0:02:58]} f5 {[%emt 0:03:53]} 15. e5 {[%emt 0:03:52]} exd5 {[%emt 0:04:03]} 16. cxd5 {[%emt 0:00:29]} c4 {[%emt 0:00:03]} 17. Bc2 {[%emt 0:02:44]} Nc7 {[%emt 0:00:18]} 18. d6 {[%emt 0:05:32]} Ne6 {[%emt 0:00:09]} 19. Be3 {[%emt 0:00:37]} Nb7 {[%emt 0:01:13]} 20. Qf2 {[%emt 0:03:04]} Nbc5 {[%emt 0:04:53]} 21. Ne2 {[%emt 0:03:39]} Qxf2+ {[%emt 0:04:19]} 22. Rxf2 {[%emt 0:01:26]} Rac8 {[%emt 0:00:18]} 23. Nd4 {[%emt 0:03:39]} Kf7 {[%emt 0:00:49]} 24. Nxe6 {[%emt 0:19:13]} Kxe6 {[%emt 0:02:10]} 25. Raf1 {[%emt 0:06:16]} Bb7 {[%emt 0:02:42]} 26. Rd2 {[%emt 0:01:58]} Nd3 {[%emt 0:04:17]} 27. h4 {[%emt 0:04:40]} Be4 {[%emt 0:01:00]} 28. g3 {[%emt 0:00:55]} h6 {[%emt 0:03:09]} 29. a4 {[%emt 0:00:53]} g5 {[%emt 0:02:44]} 30. hxg5 {[%emt 0:01:11]} hxg5 {[%emt 0:00:04]} 31. Bxd3 {[%emt 0:00:05]} cxd3 {[%emt 0:00:32]} 32. Bd4 {[%emt 0:00:48]} g4 {[%emt 0:09:43]} 33. Rh2 {[%emt 0:00:30]} Rh8 {[%emt 0:00:04]} 34. Rff2 {[%emt 0:00:23]} Rxh2 {[%emt 0:01:28]} 35. Rxh2 {[%emt 0:00:01]} Rh8 {[%emt 0:00:10]} 36. Be3 {[%emt 0:00:50]} Rxh2 {[%emt 0:01:21]} 37. Kxh2 {[%emt 0:00:01]} Bc6 {[%emt 0:00:04]} 38. Kg1 {[%emt 0:00:11]} Kd5 {[%emt 0:01:31]} 39. Kf2 {[%emt 0:00:03]} Kc4 {[%emt 0:00:18]} 40. Ke1 {[%emt 0:00:48]} Kxc3 {[%emt 0:00:41]} 41. Bd2+ {[%emt 0:30:12]} Kd4 {[%emt 0:36:33]} 42. a5 {[%emt 0:00:04]} bxa5 {[%emt 0:00:14]} 43. Bxa5 {[%emt 0:00:19]} Ke3 {[%emt 0:00:23]} 44. Kd1 {[%emt 0:00:10]} Ba4+ {[%emt 0:01:12]} 0-1

[Event "51st Rilton Cup 2023-24"]
[Site "Stockholm"]
[Date "2024.01.03"]
[Round "7.15"]
[White "Dhulipalla Bala Chandra Prasad"]
[Black "Utsab Chatterjee"]
[Result "1/2-1/2"]
[ECO "E05"]
[WhiteElo "2396"]
[BlackElo "2289"]
[Annotator "RC"]
[PlyCount "67"]
[EventDate "2023.12.27"]
[EventType "swiss"]
[EventCountry "SWE"]
[SourceTitle "playchess.com"]
[Source "ChessBase"]
[SourceQuality "1"]
[TimeControl "40/5400+30:1800+30"]

1. Nf3 {[%emt 0:05:03]} d5 {[%emt 0:00:22]} 2. g3 {[%emt 0:00:05]} Nf6 {[%emt 0:00:13]} 3. Bg2 {[%emt 0:00:06]} e6 {[%emt 0:00:09]} 4. O-O {[%emt 0:00:06]} Be7 {[%emt 0:00:03]} 5. c4 {[%emt 0:00:06]} O-O {[%emt 0:00:06]} 6. d4 {[%emt 0:01:08]} dxc4 {[%emt 0:00:11]} 7. Qc2 {[%emt 0:00:05]} a6 {[%emt 0:00:07]} 8. a4 {[%emt 0:00:05]} Bd7 {[%emt 0:00:11]} 9. Qxc4 {[%emt 0:00:07]} Bc6 {[%emt 0:00:08]} 10. Bf4 {[%emt 0:01:47]} Bd6 {[%emt 0:00:15]} 11. Qc1 {[%emt 0:00:14]} a5 {[%emt 0:00:12]} 12. Nc3 {[%emt 0:00:16]} Na6 {[%emt 0:00:35]} 13. Bd2 {[%emt 0:00:12]} Nb4 {[%emt 0:02:11]} 14. Qb1 {[%emt 0:04:58]} Bxf3 {[%emt 0:03:45]} 15. Bxf3 {[%emt 0:00:11]} c6 {[%emt 0:00:06]} 16. Ne4 {[%emt 0:02:32]} Nxe4 {[%emt 0:12:55]} 17. Qxe4 {[%emt 0:01:25]} Re8 {[%emt 0:00:08]} 18. Rfd1 {[%emt 0:11:23]} Qb6 {[%emt 0:01:08]} 19. Bc3 {[%emt 0:02:15]} Nd5 {[%emt 0:06:29]} 20. Qc2 {[%emt 0:03:29]} Nxc3 {[%emt 0:09:36]} 21. bxc3 {[%emt 0:00:49]} Qc7 {[%emt 0:00:10]} 22. Rab1 {[%emt 0:02:24]} Rab8 {[%emt 0:00:10]} 23. e3 {[%emt 0:07:42]} g6 {[%emt 0:03:46]} 24. Rb3 {[%emt 0:15:30]} Qe7 {[%emt 0:15:45]} 25. Rdb1 {[%emt 0:04:53]} Rec8 {[%emt 0:01:23]} 26. Rb6 {[%emt 0:13:25]} Qc7 {[%emt 0:08:09]} 27. R6b2 {[%emt 0:04:07]} Qe7 {[%emt 0:02:47]} 28. Rb6 {[%emt 0:00:06]} Qc7 {[%emt 0:00:03]} 29. R6b2 {[%emt 0:00:21]} Qe7 {[%emt 0:00:03]} 30. Bg2 {[%emt 0:03:36]} e5 {[%emt 0:06:09]} 31. d5 {[%emt 0:07:19]} cxd5 {[%emt 0:04:41]} 32. Bxd5 {[%emt 0:00:13]} Bb4 {[%emt 0:00:26]} 33. Rb3 {[%emt 0:00:06]} b6 {[%emt 0:03:28]} 34. Qd3 {[%emt 0:02:38]} 1/2-1/2

[Event "51st Rilton Cup 2023-24"]
[Site "Stockholm"]
[Date "2024.01.03"]
[Round "7.16"]
[White "Sidhant, Mohapatra"]
[Black "Borgaonkar Akshay"]
[Result "1-0"]
[ECO "B45"]
[WhiteElo "2408"]
[BlackElo "2206"]
[Annotator "RC"]
[PlyCount "109"]
[EventDate "2023.12.27"]
[EventType "swiss"]
[EventCountry "SWE"]
[SourceTitle "playchess.com"]
[Source "ChessBase"]
[SourceQuality "1"]
[TimeControl "40/5400+30:1800+30"]

1. e4 {[%emt 0:05:52]} c5 {[%emt 0:00:12]} 2. Nf3 {[%emt 0:00:32]} e6 {[%emt 0:00:04]} 3. d4 {[%emt 0:00:40]} cxd4 {[%emt 0:00:06]} 4. Nxd4 {[%emt 0:00:04]} Nf6 {[%emt 0:00:05]} 5. Nc3 {[%emt 0:00:15]} Nc6 {[%emt 0:00:06]} 6. a3 {[%emt 0:00:59]} d6 {[%emt 0:00:42]} 7. g3 {[%emt 0:04:38]} Bd7 {[%emt 0:13:27]} 8. Bg2 {[%emt 0:02:12]} Be7 {[%emt 0:02:36]} 9. O-O {[%emt 0:00:26]} O-O {[%emt 0:01:57]} 10. h3 {[%emt 0:00:04]} a6 {[%emt 0:03:00]} 11. Re1 {[%emt 0:14:21]} Rc8 {[%emt 0:03:20]} 12. Nxc6 {[%emt 0:03:05]} Bxc6 {[%emt 0:00:16]} 13. Be3 {[%emt 0:01:32]} Qc7 {[%emt 0:10:34]} 14. a4 {[%emt 0:05:21]} Rfd8 {[%emt 0:14:50]} 15. a5 {[%emt 0:01:49]} Qb8 {[%emt 0:01:34]} 16. Bb6 {[%emt 0:03:16]} Rd7 {[%emt 0:06:20]} 17. Qe2 {[%emt 0:06:05]} Bd8 {[%emt 0:02:36]} 18. Bd4 {[%emt 0:00:16]} e5 {[%emt 0:03:40]} 19. Be3 {[%emt 0:06:27]} d5 {[%emt 0:04:11]} 20. exd5 {[%emt 0:00:11]} Nxd5 {[%emt 0:00:08]} 21. Nxd5 {[%emt 0:00:29]} Bxd5 {[%emt 0:00:01]} 22. Red1 {[%emt 0:01:23]} Bc4 {[%emt 0:01:32]} 23. Qe1 {[%emt 0:01:05]} Bb5 {[%emt 0:05:02]} 24. Rxd7 {[%emt 0:01:15]} Bxd7 {[%emt 0:00:02]} 25. Rd1 {[%emt 0:00:08]} Bc6 {[%emt 0:01:28]} 26. Bxc6 {[%emt 0:01:28]} bxc6 {[%emt 0:03:26]} 27. b4 {[%emt 0:03:02]} Qb5 {[%emt 0:02:59]} 28. Rd7 {[%emt 0:00:30]} Bf6 {[%emt 0:02:11]} 29. Qd2 {[%emt 0:00:19]} Qc4 {[%emt 0:01:15]} 30. Qd3 {[%emt 0:03:43]} Qxb4 {[%emt 0:02:44]} 31. Qxa6 {[%emt 0:00:31]} Rb8 {[%emt 0:01:08]} 32. Ba7 {[%emt 0:10:02]} Re8 {[%emt 0:00:58]} 33. Bb6 {[%emt 0:01:35]} e4 {[%emt 0:00:53]} 34. Ra7 {[%emt 0:00:35]} g6 {[%emt 0:05:44]} 35. Ra8 {[%emt 0:00:11]} Rxa8 {[%emt 0:00:13]} 36. Qxa8+ {[%emt 0:00:04]} Kg7 {[%emt 0:00:01]} 37. Qxc6 {[%emt 0:00:26]} Bd4 {[%emt 0:03:42]} 38. Bxd4+ {[%emt 0:03:39]} Qxd4 {[%emt 0:00:01]} 39. Qb6 {[%emt 0:00:06]} Qd1+ {[%emt 0:02:17]} 40. Kh2 {[%emt 0:00:06]} Qe2 {[%emt 0:01:07]} 41. Qd4+ {[%emt 0:31:51]} f6 {[%emt 0:30:56]} 42. c4 {[%emt 0:00:35]} h5 {[%emt 0:00:00]} 43. h4 {[%emt 0:00:00]} Qd3 {[%emt 0:00:00]} 44. Qc5 {[%emt 0:00:00]} f5 {[%emt 0:00:00]} 45. a6 {[%emt 0:00:00]} f4 {[%emt 0:00:00]} 46. Qc7+ {[%emt 0:00:00]} Kg8 {[%emt 0:00:00]} 47. Qxf4 {[%emt 0:00:00]} Qxc4 {[%emt 0:00:00]} 48. a7 {[%emt 0:00:00]} Qa2 {[%emt 0:00:00]} 49. Qb8+ {[%emt 0:00:00]} Kh7 {[%emt 0:00:00]} 50. Qb7+ {[%emt 0:00:00]} Kh6 {[%emt 0:00:00]} 51. Kg2 {[%emt 0:00:00]} e3 {[%emt 0:00:00]} 52. a8=Q {[%emt 0:00:00]} Qxf2+ {[%emt 0:00:00]} 53. Kh1 {[%emt 0:00:00]} Qf1+ {[%emt 0:00:00]} 54. Kh2 {[%emt 0:00:00]} Qf2+ {[%emt 0:00:00]} 55. Qg2 {[%emt 0:00:00]} 1-0

[Event "51st Rilton Cup 2023-24"]
[Site "Stockholm"]
[Date "2024.01.03"]
[Round "7.17"]
[White "Costa, Leonardo"]
[Black "Falkevall, Axel"]
[Result "0-1"]
[ECO "C79"]
[WhiteElo "2472"]
[BlackElo "2311"]
[Annotator "TA"]
[PlyCount "50"]
[EventDate "2023.12.27"]
[EventType "swiss"]
[EventCountry "SWE"]
[SourceTitle "playchess.com"]
[Source "ChessBase"]
[SourceQuality "1"]
[TimeControl "40/5400+30:1800+30"]

{[%evp 15,50,28,32,29,28,22,47,32,54,28,51,0,8,0,29,26,34,35,39,27,29,19,22,-51,-41,-45,-64,-89,-70,-365,-365,-365,-365,-597,-472,-452,-355]} 1. e4 {[%emt 0:00:03]} e5 {[%emt 0:00:09]} 2. Nf3 {[%emt 0:00:06]} Nc6 {[%emt 0:00:05]} 3. Bb5 {[%emt 0:00:06]} a6 {[%emt 0:00:05]} 4. Ba4 {[%emt 0:00:06]} Nf6 {[%emt 0:00:08]} 5. O-O {[%emt 0:00:05]} d6 {[%emt 0:00:13]} 6. Re1 {[%emt 0:05:05]} Bd7 {[%emt 0:01:07]} 7. c3 {[%emt 0:00:17]} g6 {[%emt 0:00:10]} 8. d4 {[%emt 0:00:14]} Bg7 {[%emt 0:00:06]} 9. h3 {[%emt 0:00:05] C79: Ruy Lopez: Steinitz-type lines with 3...a6 4 Ba4 Nf6 5 0-0 d6.} O-O {[%emt 0:00:11]} 10. Bc2 {[%emt 0:00:04]} Nh5 {[%emt 0:02:05]} 11. a4 {[%emt 0:03:14] White is slightly better.} Qe8 {[%emt 0:02:06]} 12. Na3 {[%emt 0:00:05]} f5 {[%emt 0:01:46]} 13. Nc4 {[%emt 0:00:33]} fxe4 {[%emt 0:04:04] [#]} 14. Rxe4 $146 {[%emt 0:00:27]} ({Predecessor:} 14. Bxe4 Qf7 15. dxe5 Be6 16. Bxc6 bxc6 17. Na5 Bd5 18. Ra3 Bxf3 19. Qxf3 Qxf3 20. gxf3 Bxe5 21. Nxc6 {0-1 Shirov,A (2668)-Sambuev,B (2462) Casablanca Mohammed op 4th 2023 (3)}) 14... d5 {[%emt 0:02:13]} (14... Bf5 $5 {[%cal Rf5e4]} 15. Bb3 d5 16. Rxe5 Nxe5 17. Ncxe5 Nf6 $11) 15. Rxe5 {[%emt 0:00:06]} Qf7 {[%emt 0:00:26] [#]} 16. Rxh5 $1 {[%emt 0:17:32]} gxh5 {[%emt 0:02:18]} 17. Ne3 {[%emt 0:00:31][%cal Oe3d5] And now Nxd5! would win.} ({Of course not} 17. Qd3 Bxd4 18. Nxd4 dxc4 19. Qg3+ Qg7 20. Qxc7 Nxd4 21. cxd4 Bc6 22. Qxg7+ Kxg7 $15) 17... Kh8 $1 {[%emt 0:06:53]} 18. Qd3 {[%csl Gc2][%cal Rd3h7][%mdl 1024] White has compensation.} Qg8 {[%cal Of8f3]} 19. Nh4 {[%emt 0:23:09]} ({But not} 19. Nxd5 $2 Bf5 20. Qd2 Qxd5 $19) (19. Ng5 $11) 19... Bf6 $1 $15 {[%emt 0:13:26][%csl LRh3,LRh4]} 20. Nef5 {[%emt 0:04:11]} Ne7 {[%emt 0:04:24]} 21. Be3 {[%emt 0:13:52]} Rae8 {[%emt 0:04:31] Hoping for ...Nxf5.} 22. Kh1 $2 {[%emt 0:08:31][%mdl 8192] This move loses the game for White.} ({White should try} 22. Nh6 $15 Qg7 23. N6f5 Nxf5 24. Nxf5) 22... Nxf5 $19 {[%emt 0:08:25]} 23. Nxf5 {[%emt 0:00:03]} Bg5 {[%emt 0:02:05]} 24. Nh6 {[%emt 0:09:14] [#]} (24. Bxg5 Bxf5 25. Qd2 Bxc2 26. Bf4) 24... Rxe3 $1 {[%emt 0:09:10][%mdl 512]} 25. Qxe3 {[%emt 0:00:07]} Qg7 {[%emt 0:00:45] Weighted Error Value: White=0.58/Black=0.12 (very precise)} 0-1

[Event "51st Rilton Cup 2023-24"]
[Site "Stockholm"]
[Date "2024.01.03"]
[Round "7.18"]
[White "Bronstein, Or"]
[Black "Ostlund, Joar"]
[Result "1-0"]
[ECO "D35"]
[WhiteElo "2428"]
[BlackElo "2326"]
[Annotator "RC"]
[PlyCount "137"]
[EventDate "2023.12.27"]
[EventType "swiss"]
[EventCountry "SWE"]
[SourceTitle "playchess.com"]
[Source "ChessBase"]
[SourceQuality "1"]
[TimeControl "40/5400+30:1800+30"]

1. d4 {[%emt 0:00:08]} d5 {[%emt 0:00:15]} 2. c4 {[%emt 0:00:08]} e6 {[%emt 0:00:07]} 3. Nc3 {[%emt 0:00:07]} Nf6 {[%emt 0:00:10]} 4. cxd5 {[%emt 0:00:08]} exd5 {[%emt 0:00:08]} 5. Bg5 {[%emt 0:00:05]} c6 {[%emt 0:00:10]} 6. e3 {[%emt 0:00:05]} Be7 {[%emt 0:00:08]} 7. Bd3 {[%emt 0:00:07]} O-O {[%emt 0:00:12]} 8. Nf3 {[%emt 0:00:58]} h6 {[%emt 0:09:47]} 9. Bf4 {[%emt 0:00:19]} Nh5 {[%emt 0:07:31]} 10. Be5 {[%emt 0:01:03]} Nd7 {[%emt 0:00:33]} 11. h3 {[%emt 0:02:43]} Nxe5 {[%emt 0:00:34]} 12. dxe5 {[%emt 0:00:32]} g6 {[%emt 0:00:44]} 13. O-O {[%emt 0:00:09]} Ng7 {[%emt 0:03:51]} 14. Qc2 {[%emt 0:10:49]} Be6 {[%emt 0:17:21]} 15. Rad1 {[%emt 0:04:28]} Rc8 {[%emt 0:06:05]} 16. Rfe1 {[%emt 0:19:54]} Qc7 {[%emt 0:11:16]} 17. e4 {[%emt 0:15:42]} d4 {[%emt 0:00:34]} 18. Ne2 {[%emt 0:10:03]} c5 {[%emt 0:01:04]} 19. b3 {[%emt 0:04:18]} g5 {[%emt 0:18:02]} 20. Ng3 {[%emt 0:06:54]} g4 {[%emt 0:06:39]} 21. hxg4 {[%emt 0:04:39]} Bxg4 {[%emt 0:00:03]} 22. Qd2 {[%emt 0:00:46]} Bxf3 {[%emt 0:01:43]} 23. gxf3 {[%emt 0:00:01]} Qxe5 {[%emt 0:00:13]} 24. f4 {[%emt 0:00:09]} Qc7 {[%emt 0:01:11]} 25. Kg2 {[%emt 0:04:03]} f5 {[%emt 0:00:55]} 26. Rh1 {[%emt 0:09:16]} Rf6 {[%emt 0:00:55]} 27. Rdg1 {[%emt 0:00:20]} fxe4 {[%emt 0:12:24]} 28. Nxe4 {[%emt 0:00:12]} Rg6+ {[%emt 0:00:28]} 29. Ng3 {[%emt 0:02:09]} Rf6 {[%emt 0:00:05]} 30. Kf1 {[%emt 0:00:17]} Qxf4 {[%emt 0:01:27]} 31. Qxf4 {[%emt 0:01:06]} Rxf4 {[%emt 0:00:02]} 32. Rxh6 {[%emt 0:01:25]} Kf7 {[%emt 0:00:55]} 33. Rh7 {[%emt 0:02:04]} Rh4 {[%emt 0:00:57]} 34. Nh5 {[%emt 0:00:47]} Bf8 {[%emt 0:00:28]} 35. Bg6+ {[%emt 0:01:17]} Ke7 {[%emt 0:00:30]} 36. Nxg7 {[%emt 0:00:02]} Rxh7 {[%emt 0:00:28]} 37. Bxh7 {[%emt 0:00:17]} Kd6 {[%emt 0:00:32]} 38. Rg6+ {[%emt 0:00:49]} Kd5 {[%emt 0:00:27]} 39. Nh5 {[%emt 0:00:38]} c4 {[%emt 0:00:35]} 40. Bg8+ {[%emt 0:00:15]} Kc5 {[%emt 0:00:28]} 41. Bxc4 {[%emt 0:30:11]} Kb4 {[%emt 0:30:13]} 42. Nf4 {[%emt 0:00:27]} Ka3 {[%emt 0:00:00]} 43. Ne6 {[%emt 0:00:00]} Kxa2 {[%emt 0:00:00]} 44. Nxd4 {[%emt 0:00:00]} Kb2 {[%emt 0:00:00]} 45. Ne6 {[%emt 0:00:00]} Bb4 {[%emt 0:00:00]} 46. Rg7 {[%emt 0:00:00]} Rb8 {[%emt 0:00:00]} 47. Nf4 {[%emt 0:00:00]} b5 {[%emt 0:00:00]} 48. Be6 {[%emt 0:00:00]} Bd6 {[%emt 0:00:00]} 49. Ne2 {[%emt 0:00:00]} a5 {[%emt 0:00:00]} 50. Ra7 {[%emt 0:00:00]} Re8 {[%emt 0:00:00]} 51. Bd5 {[%emt 0:00:00]} Re5 {[%emt 0:00:00]} 52. Bg8 {[%emt 0:00:00]} Re8 {[%emt 0:00:00]} 53. Rg7 {[%emt 0:00:00]} Be5 {[%emt 0:01:12]} 54. Rg6 {[%emt 0:00:00]} a4 {[%emt 0:00:51]} 55. bxa4 {[%emt 0:00:00]} bxa4 {[%emt 0:00:02]} 56. Rb6+ {[%emt 0:00:00]} Ka1 {[%emt 0:00:30]} 57. Bh7 {[%emt 0:00:00]} Bb2 {[%emt 0:02:10]} 58. Rd6 {[%emt 0:00:00]} Rh8 {[%emt 0:03:23]} 59. Be4 {[%emt 0:00:36]} Ka2 {[%emt 0:01:10]} 60. Rd2 {[%emt 0:04:09]} Rc8 {[%emt 0:00:28]} 61. Nf4 {[%emt 0:02:17]} Kb3 {[%emt 0:00:32]} 62. Rd3+ {[%emt 0:02:44]} Ka2 {[%emt 0:00:31]} 63. Nd5 {[%emt 0:00:55]} Rc4 {[%emt 0:00:18]} 64. Bf5 {[%emt 0:01:03]} a3 {[%emt 0:00:20]} 65. Ke2 {[%emt 0:00:50]} Ka1 {[%emt 0:00:46]} 66. Ne3 {[%emt 0:00:27]} Rc5 {[%emt 0:00:35]} 67. Rd1+ {[%emt 0:00:26]} Bc1 {[%emt 0:00:29]} 68. Bd3 {[%emt 0:00:28]} a2 {[%emt 0:00:31]} 69. Nc4 {[%emt 0:00:19]} 1-0

[Event "51st Rilton Cup 2023-24"]
[Site "Stockholm"]
[Date "2024.01.03"]
[Round "7.19"]
[White "Rakesh Kumar Jena"]
[Black "Wegener, Olaf"]
[Result "1-0"]
[ECO "D02"]
[WhiteElo "2335"]
[BlackElo "2413"]
[Annotator "RC"]
[PlyCount "45"]
[EventDate "2023.12.27"]
[EventType "swiss"]
[EventCountry "SWE"]
[SourceTitle "playchess.com"]
[Source "ChessBase"]
[SourceQuality "1"]
[TimeControl "40/5400+30:1800+30"]

1. d4 {[%emt 0:00:04]} Nf6 {[%emt 0:01:51]} 2. Bf4 {[%emt 0:00:12]} e6 {[%emt 0:00:31]} 3. e3 {[%emt 0:00:07]} d5 {[%emt 0:00:26]} 4. Nd2 {[%emt 0:00:28]} Bd6 {[%emt 0:00:52]} 5. Ngf3 {[%emt 0:00:54]} Bxf4 {[%emt 0:08:58]} 6. exf4 {[%emt 0:00:02]} O-O {[%emt 0:00:06]} 7. Bd3 {[%emt 0:00:55]} c5 {[%emt 0:08:06]} 8. dxc5 {[%emt 0:00:13]} Qc7 {[%emt 0:01:52]} 9. g3 {[%emt 0:00:48]} Qxc5 {[%emt 0:00:26]} 10. O-O {[%emt 0:00:26]} b6 {[%emt 0:18:34]} 11. Qe2 {[%emt 0:00:36]} a5 {[%emt 0:12:14]} 12. Nb3 {[%emt 0:02:05]} Qc7 {[%emt 0:00:01]} 13. Nbd4 {[%emt 0:01:53]} Ba6 {[%emt 0:01:58]} 14. Rac1 {[%emt 0:04:05]} Bxd3 {[%emt 0:03:55]} 15. cxd3 {[%emt 0:00:03]} Qb7 {[%emt 0:02:11]} 16. f5 {[%emt 0:03:13]} exf5 {[%emt 0:01:16]} 17. Nxf5 {[%emt 0:01:26]} Nbd7 {[%emt 0:07:31]} 18. Qe3 {[%emt 0:01:34]} g6 {[%emt 0:07:30]} 19. Ne7+ {[%emt 0:06:39]} Kg7 {[%emt 0:08:09]} 20. Nd4 {[%emt 0:04:21]} Ng8 {[%emt 0:04:15]} 21. Ndf5+ {[%emt 0:01:57]} Kh8 {[%emt 0:01:46]} 22. Qd4+ {[%emt 0:00:46]} Ndf6 {[%emt 0:04:42]} 23. Nxg8 {[%emt 0:00:10]} 1-0

[Event "51st Rilton Cup 2023-24"]
[Site "Stockholm"]
[Date "2024.01.03"]
[Round "7.20"]
[White "Anand, Batsukh"]
[Black "Djurovic, Goran"]
[Result "1-0"]
[ECO "A46"]
[WhiteElo "2263"]
[BlackElo "2372"]
[Annotator "RC"]
[PlyCount "101"]
[EventDate "2023.12.27"]
[EventType "swiss"]
[EventCountry "SWE"]
[SourceTitle "playchess.com"]
[Source "ChessBase"]
[SourceQuality "1"]
[TimeControl "40/5400+30:1800+30"]

1. Nf3 {[%emt 0:00:02]} Nf6 {[%emt 0:08:22]} 2. g3 {[%emt 0:00:11]} d5 {[%emt 0:02:30]} 3. Bg2 {[%emt 0:00:28]} e6 {[%emt 0:05:14]} 4. d4 {[%emt 0:06:31]} b5 {[%emt 0:05:28]} 5. a4 {[%emt 0:00:23]} b4 {[%emt 0:00:15]} 6. c4 {[%emt 0:00:20]} bxc3 {[%emt 0:00:41]} 7. Nxc3 {[%emt 0:00:10]} Nbd7 {[%emt 0:06:41]} 8. O-O {[%emt 0:01:51]} Be7 {[%emt 0:05:48]} 9. Bf4 {[%emt 0:04:03]} c6 {[%emt 0:00:37]} 10. Qc2 {[%emt 0:08:41]} Ba6 {[%emt 0:02:08]} 11. Rab1 {[%emt 0:07:04]} Qa5 {[%emt 0:04:30]} 12. Bd2 {[%emt 0:14:11]} Bb4 {[%emt 0:02:36]} 13. Rfe1 {[%emt 0:04:52]} O-O {[%emt 0:01:32]} 14. Na2 {[%emt 0:03:32]} Bxd2 {[%emt 0:00:33]} 15. Nxd2 {[%emt 0:00:14]} c5 {[%emt 0:05:38]} 16. b4 {[%emt 0:08:05]} cxb4 {[%emt 0:00:15]} 17. Nxb4 {[%emt 0:00:06]} Rfc8 {[%emt 0:05:31]} 18. Nc6 {[%emt 0:00:24]} Qc7 {[%emt 0:00:22]} 19. Rec1 {[%emt 0:00:38]} Nb6 {[%emt 0:00:37]} 20. a5 {[%emt 0:03:15]} Nc4 {[%emt 0:00:12]} 21. Ne5 {[%emt 0:05:11]} Rab8 {[%emt 0:03:41]} 22. Ndxc4 {[%emt 0:01:34]} Bxc4 {[%emt 0:03:11]} 23. Nxc4 {[%emt 0:00:37]} Rxb1 {[%emt 0:04:12]} 24. Qxb1 {[%emt 0:00:54]} dxc4 {[%emt 0:01:01]} 25. a6 {[%emt 0:13:09]} Nd7 {[%emt 0:11:30]} 26. Bb7 {[%emt 0:01:04]} Rd8 {[%emt 0:00:33]} 27. Qb4 {[%emt 0:01:30]} Nb6 {[%emt 0:00:07]} 28. Qc5 {[%emt 0:00:26]} Qd6 {[%emt 0:03:17]} 29. e3 {[%emt 0:02:29]} g6 {[%emt 0:00:14]} 30. Rb1 {[%emt 0:00:22]} Kg7 {[%emt 0:02:01]} 31. Kf1 {[%emt 0:00:09]} f5 {[%emt 0:08:21]} 32. Ke2 {[%emt 0:01:55]} Qxc5 {[%emt 0:01:35]} 33. dxc5 {[%emt 0:00:06]} Na4 {[%emt 0:00:03]} 34. Rc1 {[%emt 0:00:52]} Nxc5 {[%emt 0:02:43]} 35. Rxc4 {[%emt 0:00:06]} Nd7 {[%emt 0:02:12]} 36. Rc7 {[%emt 0:00:57]} Kf6 {[%emt 0:00:13]} 37. Bg2 {[%emt 0:04:13]} Nb8 {[%emt 0:01:34]} 38. Rxa7 {[%emt 0:00:16]} Rd6 {[%emt 0:00:07]} 39. Bb7 {[%emt 0:00:21]} Rb6 {[%emt 0:02:38]} 40. Ra8 {[%emt 0:00:10]} Nd7 {[%emt 0:00:20]} 41. Rd8 {[%emt 0:30:39]} Rb2+ {[%emt 0:30:31]} 42. Kf1 {[%emt 0:00:29]} Ke7 {[%emt 0:00:00]} 43. Rxd7+ {[%emt 0:00:00]} Kxd7 {[%emt 0:00:00]} 44. a7 {[%emt 0:00:00]} Rxb7 {[%emt 0:00:00]} 45. a8=Q {[%emt 0:00:00]} Rc7 {[%emt 0:00:00]} 46. Qf8 {[%emt 0:00:00]} Kc6 {[%emt 0:00:00]} 47. h4 {[%emt 0:00:00]} Rd7 {[%emt 0:00:00]} 48. Kg2 {[%emt 0:00:00]} Kd5 {[%emt 0:00:00]} 49. Kf3 {[%emt 0:00:00]} Ke5 {[%emt 0:00:00]} 50. Qh8+ {[%emt 0:00:00]} Kd6 {[%emt 0:00:00]} 51. Kf4 {[%emt 0:00:00]} 1-0